bitfinex/quotes_SOLUSD_20251128
["timestamp","ask_amount","ask_price","bid_price","bid_amount"]
[1764315175481,0.66,139.96,139.94,27.21089365]
[1764315175778,0.66,139.96,139.94,7.145518]
[1764315176080,0.66,139.96,139.95,3.14]
[1764315179165,0.66,139.96,139.94,7.145518]
[1764315179485,0.66,139.96,139.94,14.291036]
[1764315182468,2.85799219,139.96,139.94,7.145518]
[1764315182780,2.85799219,139.96,139.93,7.14397435]
[1764315182981,2.85799219,139.95,139.93,7.14397435]
[1764315183583,0.66,139.95,139.93,7.14397435]
[1764315183884,0.66,139.95,139.93,7.86397435]
[1764315184188,0.66,139.95,139.94,16.308864]
[1764315184577,0.66,139.95,139.94,19.448864]
[1764315187189,0.66,139.95,139.94,26.59478367]
[1764315187994,2.85799219,139.95,139.94,23.45478367]
[1764315188585,2.85799219,139.95,139.93,3.14]
[1764315188790,2.85799219,139.94,139.91,34.17682977]
[1764315188966,2.19799219,139.93,139.92,17.85936111]
[1764315189167,2.85799219,139.93,139.92,25.00609673]
[1764315190097,2.85799219,139.93,139.91,23.45614398]
[1764315190395,2.85799219,139.93,139.91,39.41134361]
[1764315190597,2.19799219,139.96,139.92,0.66]
[1764315190898,3.14,139.95,139.92,0.66]
[1764315191071,3.14,139.95,139.92,18.52022785]
[1764315191272,3.14,139.95,139.93,7.14643035]
[1764315191473,3.82,139.95,139.93,7.14643035]
[1764315191673,3.82,139.95,139.93,23.38532465]
[1764315193984,5.33799219,139.95,139.93,23.38532465]
[1764315194166,2.87799219,139.94,139.92,7.14678293]
[1764315194372,2.87799219,139.94,139.92,25.00572318]
[1764315194571,4.11526285,139.94,139.92,25.00572318]
[1764315195297,0.68,139.94,139.92,25.00572318]
[1764315197294,7.25526285,139.95,139.92,25.66572318]
[1764315198016,3.43526285,139.96,139.92,42.87307595]
[1764315198296,3.14,139.95,139.93,0.66]
[1764315198994,3.14,139.95,139.94,12.24520777]
[1764315199698,3.14,139.95,139.94,19.39112744]
[1764315200880,0.68,139.96,139.94,19.39112744]
[1764315201083,3.14,139.96,139.94,20.08112744]
[1764315201489,4.13526285,139.95,139.92,0.69]
[1764315201699,4.13526285,139.95,139.92,7.83683166]
[1764315201900,4.13526285,139.95,139.93,12.94520777]
[1764315202797,7.27526285,139.96,139.93,13.63520777]
[1764315203205,0.7,139.95,139.93,13.63520777]
[1764315203378,0.7,139.95,139.93,12.94520777]
[1764315203575,0.7,139.95,139.94,7.14591967]
[1764315209990,3.14,139.96,139.94,7.83591967]
[1764315210210,3.14,139.96,139.95,0.69]
[1764315210407,3.14,139.96,139.94,16.64586459]
[1764315213320,3.84,139.96,139.94,15.95586459]
[1764315213905,0.7,139.98,139.95,0.69]
[1764315214109,3.84,139.98,139.95,0.69]
[1764315214308,0.7,139.99,139.95,0.69]
[1764315214507,0.7,139.99,139.97,16.308864]
[1764315214508,3.84,139.99,139.97,16.308864]
[1764315215109,3.84,139.99,139.97,20.148864]
[1764315215311,7.27526285,139.99,139.97,20.148864]
[1764315216220,7.27526285,139.99,139.98,7.14387769]
[1764315216808,0.7,139.99,139.98,7.14387769]
[1764315217695,4.13526285,139.99,139.98,7.14387769]
[1764315222429,0.7,139.99,139.98,7.14387769]
[1764315222801,4.13526285,139.99,139.98,7.14387769]
[1764315229038,8.80994492,139.98,139.93,0.68]
[1764315229241,3.43526285,139.96,139.93,0.68]
[1764315229418,3.43526285,139.96,139.94,39.69117287]
[1764315229839,4.12526285,139.96,139.94,39.69117287]
[1764315230533,4.12526285,139.95,139.94,7.145696]
[1764315230750,4.12526285,139.95,139.92,15.95688602]
[1764315230922,3.43526285,139.94,139.92,16.63688602]
[1764315231534,4.12526285,139.94,139.92,15.95688602]
[1764315232320,4.12526285,139.94,139.92,7.1469411]
[1764315234918,4.12526285,139.94,139.92,17.43150975]
[1764315235119,0.69,139.94,139.92,17.43150975]
[1764315235432,0.69,139.93,139.91,7.14725104]
[1764315235630,0.69,139.93,139.91,17.43181969]
[1764315237743,0.69,139.94,139.91,18.11181969]
[1764315239547,16.2391666,139.96,139.92,0.68]
[1764315239548,9.49994492,139.96,139.92,0.68]
[1764315239743,0.69,139.95,139.92,0.68]
[1764315239935,0.69,139.95,139.92,16.9191666]
[1764315240557,0.69,139.95,139.92,16.2391666]
[1764315241351,0.69,139.95,139.93,7.14643035]
[1764315241740,4.12526285,139.97,139.93,23.45529435]
[1764315241946,0.69,139.96,139.93,24.13529435]
[1764315242150,4.12526285,139.96,139.93,38.84050212]
[1764315242555,0.69,139.95,139.93,38.84050212]
[1764315249743,4.12526285,139.95,139.93,16.308864]
[1764315249942,12.24520777,139.94,139.88,0.78]
[1764315250156,12.24520777,139.94,139.91,19.74412685]
[1764315250157,3.43526285,139.92,139.91,19.74412685]
[1764315250668,4.08526285,139.92,139.91,3.43526285]
[1764315250869,0.65,139.92,139.91,19.74412685]
[1764315251670,0.65,139.92,139.91,26.89157878]
[1764315254160,0.65,139.92,139.91,19.74412685]
[1764315254668,4.08526285,139.92,139.91,16.308864]
[1764315254858,0.65,139.92,139.91,16.308864]
[1764315255057,4.08526285,139.92,139.91,16.308864]
[1764315256250,0.65,139.92,139.91,16.308864]
[1764315256449,3.79,139.92,139.91,16.308864]
[1764315261368,5.98912559,139.92,139.91,16.308864]
[1764315268779,5.98912559,139.92,139.9,15.95604224]
[1764315269083,5.98912559,139.92,139.89,7.14823571]
[1764315269084,2.90912559,139.91,139.89,7.14823571]
[1764315269284,2.90912559,139.91,139.9,8.80994492]
[1764315269492,0.71,139.9,139.89,7.14823571]
[1764315269688,0.71,139.9,139.89,14.29475194]
[1764315269999,2.90912559,139.9,139.89,14.29475194]
[1764315271668,2.90912559,139.9,139.89,7.14651623]
[1764315271894,2.90912559,139.9,139.88,7.24877338]
[1764315272111,2.90912559,139.9,139.88,14.49754676]
[1764315273706,2.90912559,139.9,139.88,7.34877338]
[1764315274580,2.90912559,139.89,139.88,7.34877338]
[1764315276984,22.00754431,139.89,139.88,0.1]
[1764315277696,22.29186745,139.89,139.88,0.1]
[1764315280089,22.29186745,139.89,139.87,0.1]
[1764315280090,8.80994492,139.88,139.87,0.1]
[1764315280300,14.20251924,139.88,139.86,0.1]
[1764315280501,14.15251924,139.87,139.86,0.1]
[1764315280711,13.2081961,139.86,139.85,0.1]
[1764315281007,17.0081961,139.86,139.85,0.1]
[1764315281414,17.29251924,139.86,139.85,0.1]
[1764315281716,23.88989601,139.86,139.85,0.1]
[1764315282425,31.03990316,139.86,139.85,0.1]
[1764315283307,0.28432314,139.85,139.84,0.1]
[1764315283516,11.95339365,139.85,139.84,0.1]
[1764315284013,14.81862054,139.85,139.84,0.1]
[1764315284423,21.96913895,139.85,139.84,0.1]
[1764315284932,9.09426806,139.84,139.82,0.1]
[1764315285230,11.95339365,139.84,139.82,0.1]
[1764315286608,19.10442339,139.84,139.82,0.1]
[1764315286926,0.28432314,139.83,139.82,0.1]
[1764315287114,15.09339365,139.83,139.82,0.1]
[1764315288430,8.80994492,139.82,139.79,0.1]
[1764315288610,0.28432314,139.8,139.79,0.1]
[1764315288926,5.62344873,139.8,139.79,0.1]
[1764315289231,6.28344873,139.8,139.79,0.1]
[1764315289723,13.43652455,139.8,139.79,0.1]
[1764315290329,22.24646947,139.8,139.79,0.1]
[1764315291313,24.44559506,139.8,139.79,0.1]
[1764315291914,21.30559506,139.8,139.79,0.1]
[1764315292120,27.3120539,139.8,139.79,0.1]
[1764315293413,9.09426806,139.79,139.78,0.1]
[1764315293618,14.15251924,139.79,139.78,0.1]
[1764315293932,21.30610676,139.79,139.78,0.1]
[1764315294117,24.1725656,139.79,139.78,0.1]
[1764315295229,14.95123208,139.79,139.78,0.1]
[1764315295610,15.09339365,139.79,139.78,0.1]
[1764315296109,31.04348353,139.79,139.78,0.1]
[1764315296321,9.09426806,139.77,139.74,0.1]
[1764315296628,11.29339365,139.75,139.74,0.1]
[1764315297016,11.95339365,139.75,139.74,0.1]
[1764315298206,21.97610393,139.75,139.74,0.1]
[1764315304041,69.75366641,139.79,139.74,0.81]
[1764315304042,2.19912559,139.79,139.74,0.81]
[1764315304242,11.94994492,139.78,139.74,0.81]
[1764315304447,14.14907051,139.78,139.74,0.81]
[1764315304634,14.14907051,139.78,139.75,11.94994492]
[1764315305027,14.14907051,139.78,139.76,7.86506233]
[1764315306943,11.94994492,139.78,139.76,7.86506233]
[1764315307250,14.14907051,139.78,139.76,0.71]
[1764315307455,2.19912559,139.77,139.76,0.71]
[1764315307656,14.14907051,139.78,139.76,0.71]
[1764315311557,8.80994492,139.77,139.74,7.95599344]
[1764315311763,11.68907051,139.77,139.74,7.95599344]
[1764315312062,11.00907051,139.77,139.74,7.95599344]
[1764315312534,11.00907051,139.77,139.74,7.25599344]
[1764315312731,11.00907051,139.77,139.75,0.7]
[1764315314760,8.80994492,139.77,139.75,7.85551084]
[1764315315262,8.80994492,139.77,139.76,0.7]
[1764315317476,8.80994492,139.77,139.75,0.7]
[1764315317764,8.80994492,139.77,139.74,7.25614713]
[1764315317977,11.00907051,139.77,139.75,0.7]
[1764315318547,12.25371802,139.77,139.75,0.7]
[1764315319668,12.25371802,139.77,139.75,7.85552008]
[1764315320066,8.80994492,139.77,139.75,7.85552008]
[1764315323474,12.25371802,139.77,139.75,7.85552008]
[1764315326270,8.80994492,139.77,139.75,7.85552008]
[1764315328260,12.25371802,139.77,139.75,7.85552008]
[1764315329254,12.95371802,139.77,139.75,7.15552008]
[1764315330375,4.1437731,139.76,139.74,7.25591015]
[1764315330555,3.4437731,139.76,139.74,7.95591015]
[1764315330751,12.95371802,139.75,139.74,0.1]
[1764315332691,20.39367622,139.75,139.74,0.1]
[1764315340875,16.94990312,139.75,139.74,0.1]
[1764315341082,20.39367622,139.75,139.74,0.1]
[1764315341877,23.53367622,139.75,139.74,0.1]
[1764315342278,20.39367622,139.75,139.74,0.1]
[1764315342478,23.53367622,139.75,139.74,0.1]
[1764315344107,20.39367622,139.75,139.74,0.1]
[1764315344402,23.53367622,139.75,139.74,0.1]
[1764315350602,19.69367622,139.75,139.74,0.78]
[1764315350803,22.83367622,139.75,139.74,0.78]
[1764315351201,22.83367622,139.75,139.74,0.1]
[1764315354811,23.54367622,139.75,139.74,0.1]
[1764315361503,9.09426806,139.74,139.71,0.1]
[1764315361700,15.98181426,139.72,139.71,0.1]
[1764315362221,23.84898574,139.72,139.71,0.1]
[1764315362421,9.09426806,139.71,139.7,0.1]
[1764315362723,16.38804116,139.71,139.7,0.1]
[1764315363113,18.38804115,139.71,139.69,0.1]
[1764315363315,25.40313206,139.69,139.68,0.1]
[1764315363519,31.98690516,139.69,139.68,0.1]
[1764315363737,32.69690516,139.69,139.68,0.1]
[1764315363924,32.69690516,139.69,139.67,0.1]
[1764315363925,12.53804116,139.68,139.67,0.1]
[1764315364111,25.85103532,139.68,139.65,0.1]
[1764315364314,25.40313206,139.66,139.65,0.1]
[1764315364519,32.29067826,139.66,139.65,0.1]
[1764315364817,33.00067826,139.66,139.65,0.1]
[1764315365437,40.16092457,139.66,139.65,0.1]
[1764315365739,36.00715147,139.66,139.65,0.1]
[1764315365914,36.71715147,139.66,139.65,0.1]
[1764315368319,3.14,139.67,139.65,0.78]
[1764315368320,7.1600795,139.67,139.65,0.78]
[1764315368519,15.39371802,139.66,139.65,0.78]
[1764315368931,15.67804116,139.66,139.65,0.1]
[1764315369127,16.24587959,139.66,139.65,0.1]
[1764315369334,16.38804116,139.66,139.65,0.1]
[1764315370448,23.54828747,139.66,139.65,0.1]
[1764315373250,26.99206057,139.66,139.65,0.1]
[1764315374226,48.49206057,139.66,139.65,0.1]
[1764315374555,26.99206057,139.66,139.65,0.1]
[1764315375354,23.54828747,139.66,139.65,0.1]
[1764315377158,20.10451437,139.66,139.65,0.1]
[1764315377382,23.54828747,139.66,139.65,0.1]
[1764315377680,20.40828747,139.66,139.65,0.1]
[1764315377854,23.56828747,139.66,139.65,0.1]
[1764315378054,22.85828747,139.66,139.65,0.1]
[1764315378254,23.53828747,139.66,139.65,0.1]
[1764315378470,22.85828747,139.66,139.65,0.1]
[1764315378785,3.14,139.68,139.65,0.81]
[1764315378955,0.28432314,139.67,139.65,0.81]
[1764315379279,8.80994492,139.67,139.65,0.81]
[1764315380674,8.80994492,139.67,139.65,7.97047012]
[1764315381089,8.80994492,139.67,139.66,0.71]
[1764315381295,2.20771532,139.73,139.66,2.91771532]
[1764315381511,11.96994492,139.72,139.67,2.20771532]
[1764315381684,14.17766024,139.72,139.67,0.71]
[1764315381889,0.28432314,139.71,139.68,0.71]
[1764315382395,8.80994492,139.7,139.68,0.71]
[1764315382599,11.01766024,139.69,139.68,0.71]
[1764315382794,11.01766024,139.69,139.66,0.71]
[1764315382795,14.17766024,139.69,139.66,0.71]
[1764315383179,8.80994492,139.67,139.66,0.71]
[1764315385105,9.09426806,139.68,139.66,0.71]
[1764315388710,9.09426806,139.67,139.66,0.71]
[1764315391214,11.30198338,139.67,139.66,0.71]
[1764315391393,18.46178977,139.67,139.65,0.1]
[1764315391712,11.30198338,139.67,139.65,0.81]
[1764315394913,9.09426806,139.67,139.65,7.97067478]
[1764315402706,8.80994492,139.68,139.66,0.66]
[1764315403011,11.94994492,139.68,139.66,0.66]
[1764315403721,11.94994492,139.68,139.66,7.81976745]
[1764315405521,11.94994492,139.68,139.67,0.66]
[1764315406017,12.23426806,139.7,139.67,7.81973365]
[1764315406208,14.44198338,139.7,139.67,7.81973365]
[1764315406606,15.16198338,139.7,139.67,7.81973365]
[1764315407119,0.72,139.69,139.66,7.82016968]
[1764315407326,22.3202033,139.7,139.67,0.66]
[1764315412421,11.01766024,139.68,139.65,0.76]
[1764315412623,2.20771532,139.67,139.65,0.76]
[1764315414134,18.89734713,139.68,139.65,0.76]
[1764315414509,8.80994492,139.66,139.65,0.76]
[1764315414829,8.80994492,139.66,139.65,0.1]
[1764315415121,8.80994492,139.66,139.65,0.76]
[1764315415928,8.80994492,139.66,139.65,0.1]
[1764315416228,8.80994492,139.66,139.65,0.76]
[1764315421347,8.80994492,139.66,139.65,0.1]
[1764315421537,12.02198338,139.66,139.65,0.1]
[1764315431428,9.81426806,139.66,139.65,0.1]
[1764315431817,9.09426806,139.66,139.65,0.1]
[1764315433231,9.77426806,139.66,139.65,0.1]
[1764315433856,9.09426806,139.66,139.65,0.1]
[1764315437749,9.77426806,139.66,139.65,0.1]
[1764315438250,19.14222969,139.66,139.65,0.1]
[1764315438554,9.09426806,139.66,139.65,0.1]
[1764315438755,9.77426806,139.66,139.65,0.1]
[1764315439634,9.09426806,139.66,139.65,0.1]
[1764315440341,16.93451437,139.66,139.65,0.1]
[1764315444659,16.25451437,139.66,139.65,0.1]
[1764315445050,16.96451437,139.66,139.65,0.1]
[1764315447560,20.41362781,139.66,139.65,0.1]
[1764315449662,20.27146624,139.66,139.65,0.1]
[1764315449858,16.8223528,139.66,139.65,0.1]
[1764315451463,16.68019123,139.66,139.65,0.1]
[1764315452065,20.12930467,139.66,139.65,0.1]
[1764315453648,16.8223528,139.66,139.65,0.1]
[1764315454757,16.96451437,139.66,139.65,0.1]
[1764315456762,20.41362781,139.66,139.65,0.1]
[1764315464658,23.86274125,139.66,139.65,1e-08]
[1764315468166,27.00274125,139.66,139.65,1e-08]
[1764315468562,23.86274125,139.66,139.65,1e-08]
[1764315469070,23.26930467,139.66,139.65,1e-08]
[1764315469277,23.55362781,139.66,139.65,1e-08]
[1764315469447,0.67,139.68,139.65,1e-08]
[1764315469651,7.16024631,139.66,139.65,1e-08]
[1764315469848,19.70362781,139.66,139.65,1e-08]
[1764315470176,20.37362781,139.66,139.65,1e-08]
[1764315470549,20.23146624,139.66,139.65,1e-08]
[1764315470957,19.56146624,139.66,139.65,1e-08]
[1764315471258,19.70362781,139.66,139.65,1e-08]
[1764315472665,0.67,139.69,139.65,0.67000001]
[1764315472865,11.96994492,139.67,139.65,0.67000001]
[1764315473370,15.41905836,139.67,139.65,0.67000001]
[1764315473555,3.44911344,139.66,139.65,0.67000001]
[1764315473757,15.41905836,139.67,139.65,0.67000001]
[1764315473959,22.5788217,139.67,139.65,0.67000001]
[1764315478272,22.5788217,139.67,139.65,1e-08]
[1764315478474,23.2488217,139.67,139.65,1e-08]
[1764315480157,12.25905836,139.66,139.65,1e-08]
[1764315481373,4.41104651,139.71,139.65,0.67000001]
[1764315481555,4.41104651,139.71,139.65,1e-08]
[1764315481556,12.25905836,139.66,139.65,1e-08]
[1764315481760,15.41905836,139.66,139.65,1e-08]
[1764315482167,22.57930467,139.66,139.65,1e-08]
[1764315482789,23.24930467,139.66,139.65,1e-08]
[1764315483083,22.57930467,139.66,139.65,1e-08]
[1764315484587,19.13019123,139.66,139.65,1e-08]
[1764315484770,22.57930467,139.66,139.65,1e-08]
[1764315487384,55.83832937,139.71,139.65,0.67000001]
[1764315487385,6.60911344,139.7,139.65,0.67000001]
[1764315487685,12.25905836,139.68,139.65,7.83227391]
[1764315487884,12.25905836,139.68,139.65,0.67000001]
[1764315488187,3.16,139.67,139.66,0.67]
[1764315488384,3.16,139.67,139.65,1e-08]
[1764315488385,8.80994492,139.66,139.65,1e-08]
[1764315488584,12.25905836,139.66,139.65,1e-08]
[1764315490288,8.80994492,139.66,139.65,1e-08]
[1764315492289,9.50994492,139.66,139.65,1e-08]
[1764315492489,12.25905836,139.66,139.65,1e-08]
[1764315493490,19.41930467,139.66,139.65,1e-08]
[1764315493690,12.25905836,139.66,139.65,1e-08]
[1764315493990,8.80994492,139.66,139.65,1e-08]
[1764315495184,19.41930467,139.66,139.65,1e-08]
[1764315495390,15.97019123,139.66,139.65,1e-08]
[1764315496190,8.80994492,139.66,139.65,1e-08]
[1764315496373,12.25905836,139.66,139.65,1e-08]
[1764315496568,20.36362781,139.66,139.65,1e-08]
[1764315499790,16.91451437,139.66,139.65,1e-08]
[1764315500094,20.36362781,139.66,139.65,1e-08]
[1764315501592,19.70362781,139.66,139.65,1e-08]
[1764315501782,20.36362781,139.66,139.65,1e-08]
[1764315502594,19.12279687,139.66,139.65,1e-08]
[1764315510296,21.33107937,139.66,139.65,1e-08]
[1764315511485,8.80994492,139.62,139.61,0.1]
[1764315511679,14.46255056,139.62,139.61,0.1]
[1764315511899,22.28484822,139.62,139.61,0.1]
[1764315512328,0.28432314,139.61,139.6,0.1]
[1764315512492,9.09426806,139.58,139.56,35.22727273]
[1764315512807,5.3682825,139.57,139.56,35.22727273]
[1764315512984,6.0282825,139.57,139.56,35.22727273]
[1764315513183,5.3682825,139.57,139.56,35.22727273]
[1764315513904,12.533146,139.57,139.56,35.22727273]
[1764315514096,19.41913156,139.57,139.56,35.22727273]
[1764315514403,21.62741406,139.57,139.56,35.22727273]
[1764315514595,11.30255056,139.57,139.56,35.88727273]
[1764315514902,11.01822742,139.57,139.56,35.22727273]
[1764315515112,14.46255056,139.57,139.56,35.22727273]
[1764315515291,14.46255056,139.57,139.56,35.88727273]
[1764315515808,11.96994492,139.57,139.56,35.88727273]
[1764315516316,3.16,139.57,139.56,43.05254894]
[1764315517808,3.16,139.57,139.56,43.05264962]
[1764315518005,8.80994492,139.59,139.56,43.05264962]
[1764315518308,3.16,139.59,139.57,0.66]
[1764315519198,0.66,139.58,139.56,35.22727273]
[1764315519424,11.01822742,139.57,139.56,35.22727273]
[1764315519710,18.46741406,139.57,139.56,35.22727273]
[1764315519913,19.12741406,139.57,139.56,35.22727273]
[1764315521099,0.28432314,139.56,139.52,0.1]
[1764315521301,2.35044407,139.53,139.52,0.1]
[1764315521612,9.51736157,139.53,139.52,0.1]
[1764315521817,10.18736157,139.53,139.52,0.1]
[1764315525088,0.14216157,139.53,139.52,0.1]
[1764315525295,10.18736157,139.53,139.52,0.1]
[1764315525494,3.02044407,139.53,139.52,0.1]
[1764315525809,10.18736157,139.53,139.52,0.1]
[1764315528197,19.13946806,139.53,139.52,0.1]
[1764315532112,22.29946806,139.53,139.52,0.1]
[1764315540638,22.29946806,139.53,139.52,0.8]
[1764315540639,8.80994492,139.53,139.52,0.8]
[1764315540811,14.17822742,139.53,139.52,0.1]
[1764315541413,21.48730649,139.53,139.52,0.1]
[1764315541826,21.62946806,139.53,139.52,0.1]
[1764315542729,21.62946806,139.53,139.52,0.8]
[1764315543440,21.62946806,139.53,139.52,0.1]
[1764315546428,22.29946806,139.53,139.52,0.1]
[1764315547537,21.62946806,139.53,139.52,0.1]
[1764315547926,22.29946806,139.53,139.52,0.1]
[1764315552620,21.62946806,139.53,139.52,0.1]
[1764315553346,22.28946806,139.53,139.52,0.1]
[1764315553646,21.62946806,139.53,139.52,0.1]
[1764315561053,8.80994492,139.55,139.52,0.76]
[1764315561236,3.16,139.53,139.52,0.76]
[1764315562955,11.96994492,139.55,139.52,0.76]
[1764315563166,12.54914888,139.53,139.52,0.1]
[1764315564073,19.71606638,139.53,139.52,0.1]
[1764315564558,9.09426806,139.53,139.52,0.76]
[1764315564945,19.71606638,139.53,139.52,0.76]
[1764315565867,12.25426806,139.53,139.52,0.76]
[1764315566161,19.42118556,139.53,139.52,0.76]
[1764315567762,23.56606638,139.53,139.52,0.1]
[1764315569745,23.56606638,139.53,139.52,1e-08]
[1764315569746,27.0209472,139.53,139.52,1e-08]
[1764315569940,9.09426806,139.52,139.51,0.1]
[1764315570141,16.6940297,139.52,139.51,0.1]
[1764315570540,23.86146089,139.52,139.51,0.1]
[1764315571444,33.26056325,139.52,139.51,0.1]
[1764315571660,39.87544407,139.52,139.51,0.1]
[1764315596776,36.42056325,139.52,139.51,0.1]
[1764315596982,39.87544407,139.52,139.51,0.1]
[1764315601368,43.33032489,139.52,139.51,0.1]
[1764315601565,39.87544407,139.52,139.51,0.1]
[1764315602978,9.09426806,139.48,139.45,36.53581267]
[1764315603181,8.80994492,139.46,139.45,37.25581267]
[1764315603371,8.80994492,139.46,139.45,36.53581267]
[1764315603687,12.54914888,139.46,139.45,36.53581267]
[1764315603871,12.54914888,139.46,139.45,37.25581267]
[1764315604385,9.09426806,139.46,139.45,37.25581267]
[1764315604682,16.2647829,139.46,139.45,37.25581267]
[1764315605683,3.16,139.46,139.45,37.25581267]
[1764315606581,3.16,139.48,139.45,44.42682134]
[1764315606766,3.16,139.48,139.46,0.72]
[1764315607280,12.54914888,139.47,139.46,0.72]
[1764315608195,9.09426806,139.47,139.46,0.72]
[1764315608374,12.54914888,139.47,139.46,0.72]
[1764315608986,19.71914959,139.47,139.46,0.72]
[1764315610587,12.54914888,139.47,139.46,0.72]
[1764315610800,9.09426806,139.47,139.46,0.72]
[1764315611104,11.96994492,139.47,139.46,0.72]
[1764315612197,8.80994492,139.47,139.46,0.72]
[1764315612498,11.96994492,139.47,139.46,0.72]
[1764315613070,3.16,139.47,139.46,7.89051417]
[1764315614181,18.61921356,139.52,139.46,7.89051417]
[1764315614182,3.45488082,139.51,139.46,7.89051417]
[1764315614381,11.96994492,139.5,139.47,0.71]
[1764315614898,15.42482574,139.5,139.47,0.71]
[1764315615485,11.96994492,139.5,139.47,0.71]
[1764315615688,15.42482574,139.5,139.47,0.71]
[1764315616073,22.59329121,139.5,139.47,0.71]
[1764315617196,22.59329121,139.5,139.45,36.53581267]
[1764315617197,3.45488082,139.48,139.45,36.53581267]
[1764315617390,9.09426806,139.46,139.45,36.53581267]
[1764315617602,12.54914888,139.46,139.45,36.53581267]
[1764315618512,19.71966372,139.46,139.45,36.53581267]
[1764315621603,16.2647829,139.46,139.45,36.53581267]
[1764315621795,19.71966372,139.46,139.45,36.53581267]
[1764315624601,18.47903755,139.46,139.45,36.53581267]
[1764315626402,16.2647829,139.46,139.45,36.53581267]
[1764315626787,18.47903755,139.46,139.45,36.53581267]
[1764315627900,16.2647829,139.46,139.45,37.24581267]
[1764315629177,16.2647829,139.46,139.45,36.53581267]
[1764315630518,8.80994492,139.46,139.45,37.24581267]
[1764315633302,19.13903755,139.46,139.45,36.53581267]
[1764315634391,16.9247829,139.46,139.45,36.53581267]
[1764315635207,16.2647829,139.46,139.45,36.53581267]
[1764315636108,16.9247829,139.46,139.45,36.53581267]
[1764315645921,16.2647829,139.46,139.45,36.53581267]
[1764315646216,16.9347829,139.46,139.45,36.53581267]
[1764315646804,16.2647829,139.46,139.45,36.53581267]
[1764315647501,16.9347829,139.46,139.45,36.53581267]
[1764315648518,16.2647829,139.46,139.45,36.53581267]
[1764315649520,16.9347829,139.46,139.45,36.53581267]
[1764315654327,16.2647829,139.46,139.45,36.53581267]
[1764315654705,16.9347829,139.46,139.45,36.53581267]
[1764315655529,9.76426806,139.46,139.45,36.53581267]
[1764315657533,9.09426806,139.46,139.45,37.22581267]
[1764315657732,12.25426806,139.46,139.45,37.22581267]
[1764315659739,12.11210649,139.46,139.45,37.22581267]
[1764315661336,11.96994492,139.46,139.45,37.22581267]
[1764315662134,11.96994492,139.46,139.45,36.53581267]
[1764315662522,12.11210649,139.46,139.45,36.53581267]
[1764315662930,19.95262133,139.46,139.45,36.53581267]
[1764315663237,22.16687598,139.46,139.45,36.53581267]
[1764315664341,22.30903755,139.46,139.45,36.53581267]
[1764315665832,15.13852271,139.46,139.45,36.53581267]
[1764315666017,22.30903755,139.46,139.45,36.53581267]
[1764315667034,19.4247829,139.46,139.45,37.22581267]
[1764315667237,11.96994492,139.46,139.45,37.22581267]
[1764315667538,12.25426806,139.46,139.45,36.53581267]
[1764315668114,12.11210649,139.46,139.45,36.53581267]
[1764315668345,12.25426806,139.46,139.45,36.53581267]
[1764315669356,12.25426806,139.46,139.45,37.22581267]
[1764315670638,12.25426806,139.46,139.45,36.53581267]
[1764315671329,12.25426806,139.46,139.45,37.24581267]
[1764315671824,8.80994492,139.46,139.45,37.24581267]
[1764315672024,11.96994492,139.46,139.45,44.41684171]
[1764315672845,11.96994492,139.46,139.45,37.24581267]
[1764315676242,11.96994492,139.46,139.45,44.41684171]
[1764315677543,3.16,139.46,139.45,44.41684171]
[1764315687348,12.96426806,139.46,139.45,36.53581267]
[1764315692158,8.80994492,139.46,139.45,36.53581267]
[1764315692361,11.96994492,139.46,139.45,37.19581267]
[1764315693554,11.96994492,139.46,139.45,36.53581267]
[1764315697337,9.09426806,139.48,139.45,44.36684171]
[1764315697541,3.16,139.46,139.45,43.70684171]
[1764315697738,8.80994492,139.48,139.45,43.70684171]
[1764315697962,11.96994492,139.48,139.46,0.66]
[1764315698447,10.62619339,139.52,139.46,4.11837025]
[1764315698647,12.67994492,139.51,139.46,4.11837025]
[1764315698847,0.28432314,139.5,139.47,0.66]
[1764315699155,8.80994492,139.51,139.47,0.66]